[Event "*** Titled Tuesday Blitz"]
[Site "Chess.com"]
[Date "2021.02.16"]
[Round "2"]
[White "lider34"]
[Black "Chesswizard_2007"]
[Result "0-1"]
[WhiteElo "2481"]
[BlackElo "2725"]
[TimeControl "180+1"]
[EndTime "10:20:43 PST"]
[Termination "Chesswizard_2007 won by checkmate"]

1. e4 {[%clk 0:03:00.9]} 1... e5 {[%clk 0:02:55.9]} 2. Nf3 {[%clk 0:02:58.8]}
2... Nf6 {[%clk 0:02:51]} 3. Nxe5 {[%clk 0:02:54.2]} 3... Nc6 {[%clk 0:02:50.8]}
4. Nf3 {[%clk 0:02:42.8]} 4... Nxe4 {[%clk 0:02:45.9]} 5. Qe2 {[%clk 0:02:42.2]}
5... Qe7 {[%clk 0:02:45.8]} 6. d3 {[%clk 0:02:41.9]} 6... Nf6 {[%clk 0:02:44.9]}
7. Nc3 {[%clk 0:02:41.3]} 7... Qxe2+ {[%clk 0:02:43.5]} 8. Bxe2 {[%clk
0:02:42.2]} 8... Bc5 {[%clk 0:02:37.5]} 9. Be3 {[%clk 0:02:38.8]} 9... Bxe3
{[%clk 0:02:37]} 10. fxe3 {[%clk 0:02:39.7]} 10... d5 {[%clk 0:02:36.5]} 11. h3
{[%clk 0:02:33.3]} 11... O-O {[%clk 0:02:36.1]} 12. Kd2 {[%clk 0:02:32.1]} 12...
Be6 {[%clk 0:02:29.9]} 13. Rae1 {[%clk 0:02:31.2]} 13... h6 {[%clk 0:02:23.7]}
14. Nb5 {[%clk 0:02:29.5]} 14... Rac8 {[%clk 0:02:18]} 15. Rhf1 {[%clk
0:02:24.5]} 15... Bd7 {[%clk 0:02:15.9]} 16. Nbd4 {[%clk 0:02:21.5]} 16... Nxd4
{[%clk 0:02:15.9]} 17. exd4 {[%clk 0:02:19.4]} 17... Be6 {[%clk 0:02:15.7]} 18.
Ne5 {[%clk 0:02:16.8]} 18... c6 {[%clk 0:02:10.3]} 19. Bf3 {[%clk 0:02:15.6]}
19... a5 {[%clk 0:02:04.8]} 20. Re2 {[%clk 0:02:09]} 20... a4 {[%clk 0:02:03]}
21. a3 {[%clk 0:02:08.5]} 21... Ra8 {[%clk 0:01:59.3]} 22. c3 {[%clk 0:02:06.9]}
22... Ra6 {[%clk 0:01:58.3]} 23. Rfe1 {[%clk 0:02:05.8]} 23... Rb6 {[%clk
0:01:58]} 24. Kc2 {[%clk 0:02:05.7]} 24... Ra8 {[%clk 0:01:53.6]} 25. g4 {[%clk
0:02:00.9]} 25... Nh7 {[%clk 0:01:46.3]} 26. h4 {[%clk 0:01:58.9]} 26... g5
{[%clk 0:01:42.3]} 27. hxg5 {[%clk 0:01:34.3]} 27... hxg5 {[%clk 0:01:40.8]} 28.
Rh2 {[%clk 0:01:22.4]} 28... Kg7 {[%clk 0:01:39.2]} 29. Reh1 {[%clk 0:01:20.5]}
29... Nf6 {[%clk 0:01:38]} 30. Bd1 {[%clk 0:01:09.2]} 30... Rba6 {[%clk
0:01:27.7]} 31. Rf2 {[%clk 0:01:04.9]} 31... Rf8 {[%clk 0:01:25.3]} 32. Rfh2
{[%clk 0:00:59.7]} 32... Raa8 {[%clk 0:01:22.7]} 33. Kc1 {[%clk 0:00:58.1]}
33... Rg8 {[%clk 0:01:17.5]} 34. Rh3 {[%clk 0:00:49.8]} 34... Rh8 {[%clk
0:00:57.8]} 35. R3h2 {[%clk 0:00:34.9]} 35... Rxh2 {[%clk 0:00:56.3]} 36. Rxh2
{[%clk 0:00:35.8]} 36... Nd7 {[%clk 0:00:50.5]} 37. Rh5 {[%clk 0:00:29.9]} 37...
f6 {[%clk 0:00:48]} 38. Nxd7 {[%clk 0:00:28]} 38... Bxd7 {[%clk 0:00:48.9]} 39.
Rh2 {[%clk 0:00:27.1]} 39... b5 {[%clk 0:00:47.1]} 40. Kd2 {[%clk 0:00:26.8]}
40... Kg6 {[%clk 0:00:42.9]} 41. Be2 {[%clk 0:00:26.1]} 41... Rf8 {[%clk
0:00:36]} 42. Rh1 {[%clk 0:00:24.8]} 42... Re8 {[%clk 0:00:34.1]} 43. Rh2 {[%clk
0:00:24.1]} 43... Re7 {[%clk 0:00:34.2]} 44. Rh1 {[%clk 0:00:23.1]} 44... Rg7
{[%clk 0:00:22]} 45. Bf3 {[%clk 0:00:22.5]} 45... f5 {[%clk 0:00:21.8]} 46.
gxf5+ {[%clk 0:00:21.8]} 46... Bxf5 {[%clk 0:00:21.7]} 47. Ke3 {[%clk
0:00:21.5]} 47... Re7+ {[%clk 0:00:21.4]} 48. Kd2 {[%clk 0:00:21.3]} 48... g4
{[%clk 0:00:22.1]} 49. Be2 {[%clk 0:00:20.9]} 49... Kg5 {[%clk 0:00:21.8]} 50.
Rg1 {[%clk 0:00:20.9]} 50... Rh7 {[%clk 0:00:20.8]} 51. Rg2 {[%clk 0:00:19.8]}
51... Rh1 {[%clk 0:00:20.7]} 52. Ke3 {[%clk 0:00:17]} 52... Rh3+ {[%clk
0:00:19.9]} 53. Kf2 {[%clk 0:00:15.4]} 53... Kf4 {[%clk 0:00:19.4]} 54. Rg1
{[%clk 0:00:14.3]} 54... g3+ {[%clk 0:00:19.3]} 55. Kf1 {[%clk 0:00:13.5]} 55...
Rh2 {[%clk 0:00:19.7]} 56. Ke1 {[%clk 0:00:11.9]} 56... Bh3 {[%clk 0:00:19.7]}
57. c4 {[%clk 0:00:09.8]} 57... Rg2 {[%clk 0:00:14]} 58. Rh1 {[%clk 0:00:08.4]}
58... Bg4 {[%clk 0:00:10.2]} 59. Bxg4 {[%clk 0:00:06.3]} 59... Kxg4 {[%clk
0:00:11.1]} 60. cxb5 {[%clk 0:00:06.4]} 60... cxb5 {[%clk 0:00:11.1]} 61. Rh6
{[%clk 0:00:06.8]} 61... Rxb2 {[%clk 0:00:11.3]} 62. Kf1 {[%clk 0:00:05.6]}
62... Kf3 {[%clk 0:00:10.4]} 63. Rf6+ {[%clk 0:00:04.1]} 63... Ke3 {[%clk
0:00:11]} 64. Re6+ {[%clk 0:00:04.2]} 64... Kxd4 {[%clk 0:00:10.5]} 65. Rg6
{[%clk 0:00:04.4]} 65... g2+ {[%clk 0:00:10.9]} 66. Rxg2 {[%clk 0:00:03.5]}
66... Rxg2 {[%clk 0:00:11.8]} 67. Kxg2 {[%clk 0:00:04]} 67... Kxd3 {[%clk
0:00:12.3]} 68. Kf3 {[%clk 0:00:04.6]} 68... Kc3 {[%clk 0:00:12.9]} 69. Kf4
{[%clk 0:00:05.5]} 69... Kb3 {[%clk 0:00:13.8]} 70. Ke5 {[%clk 0:00:06]} 70...
Kxa3 {[%clk 0:00:14.7]} 71. Kxd5 {[%clk 0:00:06.7]} 71... Kb2 {[%clk 0:00:15.6]}
72. Kc5 {[%clk 0:00:07.3]} 72... a3 {[%clk 0:00:16]} 73. Kxb5 {[%clk 0:00:08.2]}
73... a2 {[%clk 0:00:16.9]} 74. Kb4 {[%clk 0:00:08.8]} 74... a1=Q {[%clk
0:00:17.8]} 75. Kb5 {[%clk 0:00:09.7]} 75... Qc1 {[%clk 0:00:18.7]} 76. Kb6
{[%clk 0:00:10.6]} 76... Qc4 {[%clk 0:00:18.1]} 77. Kb7 {[%clk 0:00:11.5]} 77...
Qe6 {[%clk 0:00:17.4]} 78. Kb8 {[%clk 0:00:12.4]} 78... Qd7 {[%clk 0:00:17.2]}
79. Ka8 {[%clk 0:00:12.1]} 79... Kc3 {[%clk 0:00:18.1]} 80. Kb8 {[%clk 0:00:12]}
80... Kb4 {[%clk 0:00:19]} 81. Ka8 {[%clk 0:00:12.9]} 81... Kc5 {[%clk
0:00:19.9]} 82. Kb8 {[%clk 0:00:13.8]} 82... Kb6 {[%clk 0:00:20.8]} 83. Ka8
{[%clk 0:00:14.7]} 83... Qd8# {[%clk 0:00:21.7]} 0-1

[Event "*** Titled Tuesday Blitz"]
[Site "Chess.com"]
[Date "2021.02.16"]
[Round "2"]
[White "frankshar"]
[Black "Natalya_Buksa"]
[Result "1-0"]
[WhiteElo "2352"]
[BlackElo "2526"]
[TimeControl "180+1"]
[EndTime "10:20:45 PST"]
[Termination "frankshar won by checkmate"]

1. d4 {[%clk 0:03:00.9]} 1... d5 {[%clk 0:02:48.3]} 2. c4 {[%clk 0:03:00.5]}
2... e6 {[%clk 0:02:47.8]} 3. Nc3 {[%clk 0:02:59.5]} 3... Nf6 {[%clk 0:02:48.3]}
4. Nf3 {[%clk 0:02:59.1]} 4... Be7 {[%clk 0:02:48.2]} 5. Bf4 {[%clk 0:02:58.2]}
5... O-O {[%clk 0:02:48.6]} 6. Rc1 {[%clk 0:02:58.5]} 6... dxc4 {[%clk
0:02:46.7]} 7. e4 {[%clk 0:02:54.4]} 7... Bb4 {[%clk 0:02:46.4]} 8. e5 {[%clk
0:02:46.9]} 8... Nd5 {[%clk 0:02:46.2]} 9. Bg5 {[%clk 0:02:47.1]} 9... f6 {[%clk
0:02:46.1]} 10. exf6 {[%clk 0:02:40.3]} 10... gxf6 {[%clk 0:02:45.8]} 11. Bh6
{[%clk 0:02:37.7]} 11... Rf7 {[%clk 0:02:45.7]} 12. Bxc4 {[%clk 0:02:34.1]}
12... b6 {[%clk 0:02:42.8]} 13. O-O {[%clk 0:02:23.9]} 13... Bb7 {[%clk
0:02:43.1]} 14. Re1 {[%clk 0:01:56]} 14... Qd7 {[%clk 0:02:40.8]} 15. Nh4 {[%clk
0:01:18.2]} 15... Bxc3 {[%clk 0:01:42.7]} 16. bxc3 {[%clk 0:01:13.8]} 16... Re7
{[%clk 0:01:34.9]} 17. Qg4+ {[%clk 0:00:45.3]} 17... Kh8 {[%clk 0:01:33.7]} 18.
Qf3 {[%clk 0:00:45]} 18... Rf7 {[%clk 0:01:29.1]} 19. Qh3 {[%clk 0:00:36.6]}
19... Nc6 {[%clk 0:01:19.4]} 20. Qxe6 {[%clk 0:00:32.2]} 20... Na5 {[%clk
0:01:14.3]} 21. Bd3 {[%clk 0:00:21.4]} 21... Re7 {[%clk 0:00:59.5]} 22. Qxd7
{[%clk 0:00:14.8]} 22... Rxd7 {[%clk 0:01:00.4]} 23. Nf5 {[%clk 0:00:14.1]}
23... Rg8 {[%clk 0:00:50.9]} 24. g3 {[%clk 0:00:14.1]} 24... c5 {[%clk
0:00:36.8]} 25. Re6 {[%clk 0:00:14]} 25... Nc7 {[%clk 0:00:26]} 26. Rxf6 {[%clk
0:00:11.9]} 26... Rgd8 {[%clk 0:00:25.8]} 27. Re1 {[%clk 0:00:10.6]} 27... cxd4
{[%clk 0:00:25.7]} 28. Nxd4 {[%clk 0:00:09.4]} 28... Bd5 {[%clk 0:00:23.1]} 29.
Re5 {[%clk 0:00:09.4]} 29... Nb7 {[%clk 0:00:21.9]} 30. Ref5 {[%clk 0:00:09.3]}
30... Bg8 {[%clk 0:00:14.9]} 31. Rf8 {[%clk 0:00:09.3]} 31... Nd6 {[%clk
0:00:13.6]} 32. Rxd8 {[%clk 0:00:08.2]} 32... Rxd8 {[%clk 0:00:14]} 33. Bg5
{[%clk 0:00:08]} 33... Nxf5 {[%clk 0:00:09.5]} 34. Bxd8 {[%clk 0:00:08.2]} 34...
Ng7 {[%clk 0:00:06.4]} 35. Bxc7 {[%clk 0:00:08.1]} 35... Bxa2 {[%clk 0:00:07]}
36. Be5 {[%clk 0:00:07.7]} 36... Kg8 {[%clk 0:00:06.4]} 37. Bxg7 {[%clk
0:00:08]} 37... Kxg7 {[%clk 0:00:06.5]} 38. Nc6 {[%clk 0:00:08.5]} 38... a5
{[%clk 0:00:06.2]} 39. Bb5 {[%clk 0:00:06.5]} 39... Bb3 {[%clk 0:00:06.1]} 40.
Nd4 {[%clk 0:00:06.6]} 40... Bd1 {[%clk 0:00:05.9]} 41. Nf5+ {[%clk 0:00:05.8]}
41... Kf6 {[%clk 0:00:06]} 42. Ne3 {[%clk 0:00:05.9]} 42... Bf3 {[%clk
0:00:06.2]} 43. Kf1 {[%clk 0:00:05.7]} 43... Ke5 {[%clk 0:00:06.6]} 44. Ke1
{[%clk 0:00:06.2]} 44... Kd6 {[%clk 0:00:07.1]} 45. Kd2 {[%clk 0:00:06.2]} 45...
Kc5 {[%clk 0:00:07.6]} 46. Ba4 {[%clk 0:00:06.3]} 46... b5 {[%clk 0:00:07.6]}
47. Bd1 {[%clk 0:00:03.7]} 47... a4 {[%clk 0:00:07.8]} 48. Bxf3 {[%clk
0:00:03.4]} 48... a3 {[%clk 0:00:07.6]} 49. Kc2 {[%clk 0:00:04]} 49... b4 {[%clk
0:00:07.4]} 50. cxb4+ {[%clk 0:00:04.1]} 50... Kxb4 {[%clk 0:00:08.3]} 51. Be4
{[%clk 0:00:04.5]} 51... Kc5 {[%clk 0:00:08.8]} 52. Bxh7 {[%clk 0:00:03.3]}
52... Kd4 {[%clk 0:00:09.7]} 53. Bd3 {[%clk 0:00:03.8]} 53... a2 {[%clk
0:00:10.1]} 54. Kb2 {[%clk 0:00:03.7]} 54... Kxd3 {[%clk 0:00:10.6]} 55. h4
{[%clk 0:00:04.1]} 55... Ke4 {[%clk 0:00:11.5]} 56. h5 {[%clk 0:00:04.1]} 56...
Ke5 {[%clk 0:00:12.1]} 57. Kxa2 {[%clk 0:00:04.1]} 57... Kf6 {[%clk 0:00:13]}
58. g4 {[%clk 0:00:04.7]} 58... Kg5 {[%clk 0:00:13.5]} 59. f3 {[%clk 0:00:05.3]}
59... Kf6 {[%clk 0:00:13.8]} 60. h6 {[%clk 0:00:05.4]} 60... Kg6 {[%clk
0:00:13.8]} 61. g5 {[%clk 0:00:05.9]} 61... Kh7 {[%clk 0:00:14]} 62. f4 {[%clk
0:00:05.9]} 62... Kg6 {[%clk 0:00:14.9]} 63. Kb3 {[%clk 0:00:06.5]} 63... Kh7
{[%clk 0:00:15.3]} 64. Kc3 {[%clk 0:00:07.1]} 64... Kg6 {[%clk 0:00:16]} 65. Kd4
{[%clk 0:00:07.7]} 65... Kf7 {[%clk 0:00:16.6]} 66. Ke5 {[%clk 0:00:08.1]} 66...
Kg6 {[%clk 0:00:17.5]} 67. Ke6 {[%clk 0:00:08.3]} 67... Kh7 {[%clk 0:00:18.4]}
68. Kf7 {[%clk 0:00:08.7]} 68... Kh8 {[%clk 0:00:18.8]} 69. Kg6 {[%clk
0:00:08.7]} 69... Kg8 {[%clk 0:00:19]} 70. Kh5 {[%clk 0:00:09.2]} 70... Kh8
{[%clk 0:00:19.9]} 71. Ng4 {[%clk 0:00:09.6]} 71... Kg8 {[%clk 0:00:20.5]} 72.
g6 {[%clk 0:00:09.9]} 72... Kh8 {[%clk 0:00:21.3]} 73. g7+ {[%clk 0:00:10.1]}
73... Kg8 {[%clk 0:00:21.7]} 74. Nf6+ {[%clk 0:00:10.4]} 74... Kf7 {[%clk
0:00:22.6]} 75. g8=Q+ {[%clk 0:00:10.7]} 75... Ke7 {[%clk 0:00:23.5]} 76. Qe8+
{[%clk 0:00:10.4]} 76... Kd6 {[%clk 0:00:23.5]} 77. Qe5+ {[%clk 0:00:10.3]}
77... Kc6 {[%clk 0:00:21.6]} 78. Qd5+ {[%clk 0:00:10.3]} 78... Kb6 {[%clk
0:00:21.8]} 79. Qc4 {[%clk 0:00:09.8]} 79... Ka5 {[%clk 0:00:21.9]} 80. h7
{[%clk 0:00:09.9]} 80... Kb6 {[%clk 0:00:21.8]} 81. h8=Q {[%clk 0:00:09.9]}
81... Kb7 {[%clk 0:00:22.4]} 82. Qhc8+ {[%clk 0:00:08.9]} 82... Kb6 {[%clk
0:00:23.3]} 83. Q4a6# {[%clk 0:00:08.9]} 1-0

[Event "*** Titled Tuesday Blitz"]
[Site "Chess.com"]
[Date "2021.02.16"]
[Round "2"]
[White "Nbk90"]
[Black "Spriteball"]
[Result "1/2-1/2"]
[WhiteElo "2564"]
[BlackElo "2333"]
[TimeControl "180+1"]
[EndTime "10:20:49 PST"]
[Termination "Game drawn by repetition"]

1. Nf3 {[%clk 0:02:59.5]} 1... Nf6 {[%clk 0:02:59.8]} 2. c4 {[%clk 0:02:59.1]}
2... e6 {[%clk 0:02:59.8]} 3. g3 {[%clk 0:02:59.2]} 3... d5 {[%clk 0:02:59.8]}
4. Bg2 {[%clk 0:03:00.1]} 4... Be7 {[%clk 0:02:59.8]} 5. O-O {[%clk 0:03:01]}
5... O-O {[%clk 0:02:59.7]} 6. b3 {[%clk 0:03:01.7]} 6... b6 {[%clk 0:02:56.1]}
7. Bb2 {[%clk 0:03:01.6]} 7... Bb7 {[%clk 0:02:55.7]} 8. e3 {[%clk 0:03:02]}
8... Nbd7 {[%clk 0:02:54.8]} 9. Nc3 {[%clk 0:03:01.4]} 9... c5 {[%clk 0:02:51]}
10. Qe2 {[%clk 0:03:00.9]} 10... Qc7 {[%clk 0:02:38.9]} 11. cxd5 {[%clk
0:02:55]} 11... Nxd5 {[%clk 0:02:31.9]} 12. Nxd5 {[%clk 0:02:55.1]} 12... Bxd5
{[%clk 0:02:31.8]} 13. e4 {[%clk 0:02:55.4]} 13... Bb7 {[%clk 0:02:30.1]} 14. d4
{[%clk 0:02:54.2]} 14... cxd4 {[%clk 0:02:27]} 15. Rac1 {[%clk 0:02:52.8]} 15...
Qd6 {[%clk 0:02:16.6]} 16. Nxd4 {[%clk 0:02:40.8]} 16... Rac8 {[%clk 0:02:13]}
17. e5 {[%clk 0:01:54.9]} 17... Qb8 {[%clk 0:02:12.4]} 18. Nc6 {[%clk
0:01:52.4]} 18... Bxc6 {[%clk 0:02:10.2]} 19. Bxc6 {[%clk 0:01:48.6]} 19... Nc5
{[%clk 0:02:06.8]} 20. Bg2 {[%clk 0:01:45.8]} 20... Rfd8 {[%clk 0:01:59.6]} 21.
Rfd1 {[%clk 0:01:45.5]} 21... Rxd1+ {[%clk 0:01:33.7]} 22. Rxd1 {[%clk
0:01:46.4]} 22... Rd8 {[%clk 0:01:30.1]} 23. h4 {[%clk 0:01:28.1]} 23... h6
{[%clk 0:01:19]} 24. f4 {[%clk 0:01:16.8]} 24... Qc7 {[%clk 0:01:06.2]} 25. Rd4
{[%clk 0:01:02.8]} 25... Rxd4 {[%clk 0:00:58]} 26. Bxd4 {[%clk 0:01:03.7]} 26...
Nd7 {[%clk 0:00:57.5]} 27. Kh2 {[%clk 0:00:59.7]} 27... Bc5 {[%clk 0:00:56.9]}
28. Bb2 {[%clk 0:00:56.2]} 28... a5 {[%clk 0:00:45.3]} 29. Qe4 {[%clk
0:00:50.7]} 29... Bf8 {[%clk 0:00:37.8]} 30. f5 {[%clk 0:00:46.9]} 30... Nc5
{[%clk 0:00:31.8]} 31. Qc2 {[%clk 0:00:45.2]} 31... exf5 {[%clk 0:00:27.2]} 32.
Qxf5 {[%clk 0:00:46.1]} 32... Ne6 {[%clk 0:00:26.6]} 33. Bd5 {[%clk 0:00:44.9]}
33... Qe7 {[%clk 0:00:25.3]} 34. Bc4 {[%clk 0:00:40.4]} 34... Qe8 {[%clk
0:00:22.5]} 35. Bc1 {[%clk 0:00:36]} 35... b5 {[%clk 0:00:21.9]} 36. Bd5 {[%clk
0:00:27.2]} 36... Nc7 {[%clk 0:00:21.6]} 37. Bg2 {[%clk 0:00:21.4]} 37... Ne6
{[%clk 0:00:20.6]} 38. Be3 {[%clk 0:00:20.6]} 38... b4 {[%clk 0:00:19.8]} 39.
Bd5 {[%clk 0:00:20.1]} 39... Qd7 {[%clk 0:00:18.2]} 40. Bc4 {[%clk 0:00:20]}
40... Qc6 {[%clk 0:00:15.3]} 41. g4 {[%clk 0:00:13.1]} 41... a4 {[%clk
0:00:15.3]} 42. g5 {[%clk 0:00:12.7]} 42... hxg5 {[%clk 0:00:15.2]} 43. hxg5
{[%clk 0:00:13.6]} 43... g6 {[%clk 0:00:14.7]} 44. Qg4 {[%clk 0:00:11.1]} 44...
a3 {[%clk 0:00:13.7]} 45. Kg3 {[%clk 0:00:10.2]} 45... Bc5 {[%clk 0:00:11.1]}
46. Bxc5 {[%clk 0:00:05.3]} 46... Qxc5 {[%clk 0:00:12]} 47. Qe4 {[%clk
0:00:03.5]} 47... Qg1+ {[%clk 0:00:11.2]} 48. Kh4 {[%clk 0:00:01.2]} 48... Qxg5+
{[%clk 0:00:11.4]} 49. Kh3 {[%clk 0:00:01.8]} 49... Qh5+ {[%clk 0:00:11.3]} 50.
Kg2 {[%clk 0:00:02.3]} 50... Qg5+ {[%clk 0:00:10.5]} 51. Kf3 {[%clk 0:00:02.8]}
51... Qg1 {[%clk 0:00:09.6]} 52. Bxe6 {[%clk 0:00:02.5]} 52... fxe6 {[%clk
0:00:09]} 53. Qa8+ {[%clk 0:00:02.3]} 53... Kf7 {[%clk 0:00:08.5]} 54. Qb7+
{[%clk 0:00:03.2]} 54... Kf8 {[%clk 0:00:08.4]} 55. Qb8+ {[%clk 0:00:02.9]}
55... Kf7 {[%clk 0:00:08.4]} 56. Qb7+ {[%clk 0:00:03.3]} 56... Kg8 {[%clk
0:00:08.3]} 57. Qxb4 {[%clk 0:00:03.5]} 57... Qf1+ {[%clk 0:00:07.5]} 58. Ke4
{[%clk 0:00:02.9]} 58... Qb1+ {[%clk 0:00:07.7]} 59. Kd4 {[%clk 0:00:02.7]}
59... Qxa2 {[%clk 0:00:06.5]} 60. Qb8+ {[%clk 0:00:03.3]} 60... Kf7 {[%clk
0:00:06.5]} 61. Qc7+ {[%clk 0:00:03.4]} 61... Kg8 {[%clk 0:00:06.6]} 62. Qc8+
{[%clk 0:00:03]} 62... Kf7 {[%clk 0:00:06.7]} 63. Qd7+ {[%clk 0:00:03.3]} 63...
Kf8 {[%clk 0:00:06.9]} 64. Qd8+ {[%clk 0:00:03.9]} 64... Kf7 {[%clk 0:00:07.2]}
65. Qf6+ {[%clk 0:00:04.4]} 65... Ke8 {[%clk 0:00:06.7]} 66. Qxe6+ {[%clk
0:00:04.7]} 66... Kf8 {[%clk 0:00:07]} 67. Qf6+ {[%clk 0:00:04.9]} 67... Ke8
{[%clk 0:00:07.4]} 68. Qxg6+ {[%clk 0:00:04.8]} 68... Ke7 {[%clk 0:00:07.3]} 69.
Qf6+ {[%clk 0:00:05.1]} 69... Ke8 {[%clk 0:00:07.5]} 70. Qe6+ {[%clk 0:00:03.1]}
70... Kd8 {[%clk 0:00:07.3]} 71. Qd6+ {[%clk 0:00:03.2]} 71... Ke8 {[%clk
0:00:07.6]} 72. Qc6+ {[%clk 0:00:02.2]} 72... Ke7 {[%clk 0:00:07.6]} 73. Qd6+
{[%clk 0:00:02.1]} 73... Ke8 {[%clk 0:00:07.8]} 74. Qe6+ {[%clk 0:00:02.5]}
74... Kd8 {[%clk 0:00:08]} 75. Qd6+ {[%clk 0:00:02.6]} 75... Ke8 {[%clk
0:00:08.2]} 1/2-1/2

[Event "*** Titled Tuesday Blitz"]
[Site "Chess.com"]
[Date "2021.02.16"]
[Round "2"]
[White "ram1zan"]
[Black "louis198"]
[Result "0-1"]
[WhiteElo "2863"]
[BlackElo "2555"]
[TimeControl "180+1"]
[EndTime "10:20:53 PST"]
[Termination "louis198 won by resignation"]

1. e4 {[%clk 0:03:00.9]} 1... e6 {[%clk 0:03:00.9]} 2. d4 {[%clk 0:02:57.3]}
2... d5 {[%clk 0:03:01.8]} 3. Nc3 {[%clk 0:02:57.1]} 3... dxe4 {[%clk
0:03:00.8]} 4. Nxe4 {[%clk 0:02:57.3]} 4... Bd7 {[%clk 0:03:01.2]} 5. Nf3 {[%clk
0:02:56.7]} 5... Bc6 {[%clk 0:03:01.5]} 6. Bd3 {[%clk 0:02:56.6]} 6... Nd7
{[%clk 0:03:01.3]} 7. O-O {[%clk 0:02:56]} 7... Ngf6 {[%clk 0:02:59.1]} 8. Ng3
{[%clk 0:02:55.9]} 8... g6 {[%clk 0:02:54.7]} 9. c4 {[%clk 0:02:55.3]} 9... Bg7
{[%clk 0:02:53.2]} 10. h3 {[%clk 0:02:30.2]} 10... O-O {[%clk 0:02:51.5]} 11.
Re1 {[%clk 0:02:28.1]} 11... b6 {[%clk 0:02:38.6]} 12. b3 {[%clk 0:02:17.9]}
12... Bb7 {[%clk 0:02:33.5]} 13. Bb2 {[%clk 0:02:16.7]} 13... c5 {[%clk
0:02:24.3]} 14. Qe2 {[%clk 0:02:11.4]} 14... Re8 {[%clk 0:02:18.2]} 15. Rad1
{[%clk 0:02:10.1]} 15... Qc7 {[%clk 0:02:12.5]} 16. Bb1 {[%clk 0:02:07]} 16...
Rad8 {[%clk 0:02:10]} 17. dxc5 {[%clk 0:02:06.4]} 17... Nxc5 {[%clk 0:02:02.2]}
18. Be5 {[%clk 0:02:00.2]} 18... Qc6 {[%clk 0:01:37.6]} 19. Qb2 {[%clk
0:01:56.9]} 19... Rxd1 {[%clk 0:00:51.7]} 20. Rxd1 {[%clk 0:01:57.8]} 20... Ncd7
{[%clk 0:00:51.9]} 21. Rd6 {[%clk 0:01:06.8]} 21... Qc7 {[%clk 0:00:20.6]} 22.
Rxe6 {[%clk 0:00:29.4]} 22... Nxe5 {[%clk 0:00:20.1]} 23. Qxe5 {[%clk
0:00:29.8]} 23... Qxe5 {[%clk 0:00:17.9]} 24. Rxe5 {[%clk 0:00:30.7]} 24... Bxf3
{[%clk 0:00:15.6]} 25. Rxe8+ {[%clk 0:00:30.8]} 25... Nxe8 {[%clk 0:00:16.5]}
26. gxf3 {[%clk 0:00:31.7]} 26... f5 {[%clk 0:00:16.7]} 27. Ne2 {[%clk 0:00:27]}
27... Be5 {[%clk 0:00:16.1]} 28. f4 {[%clk 0:00:25.4]} 28... Bf6 {[%clk
0:00:16.3]} 29. Kg2 {[%clk 0:00:26]} 29... Kf7 {[%clk 0:00:16.6]} 30. Kf3 {[%clk
0:00:26.3]} 30... Ke6 {[%clk 0:00:17.5]} 31. Ke3 {[%clk 0:00:22.8]} 31... Nd6
{[%clk 0:00:17]} 32. Nd4+ {[%clk 0:00:20.3]} 32... Bxd4+ {[%clk 0:00:16.2]} 33.
Kxd4 {[%clk 0:00:21.2]} 33... Nb7 {[%clk 0:00:16]} 34. b4 {[%clk 0:00:21.1]}
34... Kd6 {[%clk 0:00:16.3]} 35. Bc2 {[%clk 0:00:19.2]} 35... a5 {[%clk
0:00:16.6]} 36. a3 {[%clk 0:00:19.4]} 36... axb4 {[%clk 0:00:16.9]} 37. axb4
{[%clk 0:00:20.3]} 37... Nd8 {[%clk 0:00:17.4]} 38. Ba4 {[%clk 0:00:19.3]} 38...
Ne6+ {[%clk 0:00:17.1]} 39. Ke3 {[%clk 0:00:20]} 39... h6 {[%clk 0:00:12.5]} 40.
h4 {[%clk 0:00:19]} 40... Ke7 {[%clk 0:00:12.3]} 41. Bc6 {[%clk 0:00:18.5]}
41... Kf6 {[%clk 0:00:12.2]} 42. Bd5 {[%clk 0:00:18.9]} 42... Nc7 {[%clk
0:00:12.3]} 43. Kd4 {[%clk 0:00:19.4]} 43... Na6 {[%clk 0:00:12.6]} 44. Kc3
{[%clk 0:00:17.2]} 44... Ke7 {[%clk 0:00:12.4]} 45. Bb7 {[%clk 0:00:10.7]} 45...
Nc7 {[%clk 0:00:12.5]} 46. Bc8 {[%clk 0:00:11.3]} 46... Kd8 {[%clk 0:00:11.1]}
47. Bb7 {[%clk 0:00:11.6]} 47... Ne6 {[%clk 0:00:11.4]} 48. Bd5 {[%clk 0:00:09]}
48... Nxf4 {[%clk 0:00:11.7]} 49. Kd4 {[%clk 0:00:09.5]} 49... Ke7 {[%clk
0:00:11.7]} 50. Ke5 {[%clk 0:00:10]} 50... Nd3+ {[%clk 0:00:12]} 51. Kd4 {[%clk
0:00:10.3]} 51... Nxb4 {[%clk 0:00:12.8]} 52. Bf3 {[%clk 0:00:09.9]} 52... Kd6
{[%clk 0:00:12.4]} 53. Bg2 {[%clk 0:00:08.5]} 53... Nc2+ {[%clk 0:00:12.6]} 54.
Kc3 {[%clk 0:00:08.6]} 54... Ne1 {[%clk 0:00:12.8]} 55. Bd5 {[%clk 0:00:06.8]}
55... b5 {[%clk 0:00:09.2]} 56. Kd2 {[%clk 0:00:06.5]} 56... bxc4 {[%clk
0:00:09.6]} 57. Bf7 {[%clk 0:00:02.9]} 57... Nf3+ {[%clk 0:00:09.2]} 58. Ke3
{[%clk 0:00:03.7]} 58... Nxh4 {[%clk 0:00:09.5]} 59. Bxc4 {[%clk 0:00:04.6]}
59... Ke5 {[%clk 0:00:09.5]} 60. f4+ {[%clk 0:00:04.9]} 60... Kf6 {[%clk
0:00:09.7]} 61. Kf2 {[%clk 0:00:05.4]} 61... g5 {[%clk 0:00:10.2]} 62. fxg5+
{[%clk 0:00:05.1]} 62... hxg5 {[%clk 0:00:11.1]} 63. Kg3 {[%clk 0:00:06]} 63...
Ng6 {[%clk 0:00:10.5]} 64. Kf2 {[%clk 0:00:06.6]} 64... Ne5 {[%clk 0:00:11.4]}
65. Be2 {[%clk 0:00:07.3]} 65... g4 {[%clk 0:00:10.8]} 66. Kg3 {[%clk
0:00:07.8]} 66... Kg5 {[%clk 0:00:11.7]} 67. Kg2 {[%clk 0:00:08.4]} 67... f4
{[%clk 0:00:12.2]} 68. Kf2 {[%clk 0:00:09.2]} 68... f3 {[%clk 0:00:10.7]} 69.
Ba6 {[%clk 0:00:08.8]} 69... Kf4 {[%clk 0:00:11.2]} 70. Bb7 {[%clk 0:00:08.8]}
70... g3+ {[%clk 0:00:12.1]} 71. Kf1 {[%clk 0:00:08.9]} 71... Ke3 {[%clk
0:00:11.8]} 72. Kg1 {[%clk 0:00:09]} 72... Nd3 {[%clk 0:00:11.1]} 73. Ba8 {[%clk
0:00:08.7]} 73... Nf4 {[%clk 0:00:10.3]} 74. Bb7 {[%clk 0:00:08.6]} 74... Ne2+
{[%clk 0:00:10.5]} 0-1